fUSD/lending_fUSD_20260527
["ID","MTS","AMOUNT","RATE_DAILY","PERIOD"]
[423065872,1779815438000,-150.0,0.00027049,4]
[423065871,1779815438000,-176.20154969,0.00027027,2]
[423065878,1779815438000,-1467.22,0.00027397,2]
[423065882,1779815438000,-9999.99,0.00027397,2]
[423065883,1779815438000,-4999.99,0.00027397,2]
[423065885,1779815438000,-1580.03,0.00027397,2]
[423065884,1779815438000,-9999.99,0.00027397,2]
[423065891,1779815438000,-163.6,0.00027645,30]
[423065886,1779815438000,-22036.73,0.00027397,10]
[423065893,1779815438000,-4100.0,0.000279,10]
[423065892,1779815438000,-150.0,0.00027717,7]
[423065887,1779815438000,-1395.24,0.00027433,2]
[423065889,1779815438000,-150.0,0.00027521,2]
[423065888,1779815438000,-169.0,0.000275,7]
[423065895,1779815438000,-2082.80450792,0.0002792,2]
[423065896,1779815438000,-494.34458581,0.0002792,2]
[423065894,1779815438000,-1024.47879647,0.0002792,2]
[423065855,1779815438000,-243.0,0.00025,2]
[423065873,1779815438000,-150.0,0.00027049,4]
[423065869,1779815438000,-2108.39424618,0.00026757,2]
[423065890,1779815438000,-165.47,0.00027626,30]
[423065881,1779815438000,-150.99,0.00027397,2]
[423065897,1779815438000,-54.94926398,0.0002792,2]
[423065852,1779815438000,-159.57,0.00024748,2]
[423065853,1779815438000,-161.24,0.00024762,2]
[423065847,1779815438000,-171.27,0.00024658,2]
[423065854,1779815438000,-158.0020006,0.00025,2]
[423065856,1779815438000,-186.80519065,0.00025,2]
[423065861,1779815438000,-7981.96,0.00025731,2]
[423065863,1779815438000,-915.34378663,0.00025948,2]
[423065862,1779815438000,-500.0,0.00025753,2]
[423065857,1779815438000,-504.0,0.00025082,2]
[423065860,1779815438000,-769.61,0.0002572,2]
[423065846,1779815438000,-197.4,0.00024324,2]
[423065858,1779815438000,-1000.0,0.000256,2]
[423065879,1779815438000,-8815.5,0.00027397,10]
[423065859,1779815438000,-167.53,0.00025616,2]
[423065877,1779815438000,-150.0,0.00027383,4]
[423065870,1779815438000,-358.38,0.00026771,2]
[423065867,1779815438000,-169.0,0.000267,7]
[423065880,1779815438000,-299.99,0.00027397,12]
[423065864,1779815438000,-176.67446704,0.00026196,2]
[423065866,1779815438000,-504.0,0.00026608,3]
[423065865,1779815438000,-197.4,0.00026296,2]
[423065868,1779815438000,-919.24371123,0.00026757,2]
[423065898,1779815441000,-891.9241332,0.00027397,10]
[423065919,1779815442000,-570.62590621,0.00028486,2]
[423065926,1779815442000,-513.63355706,0.00028592,2]
[423065922,1779815442000,-642.79,0.000285,2]
[423065916,1779815442000,-570.62590621,0.00028399,2]
[423065921,1779815442000,-570.62590621,0.00028488,2]
[423065924,1779815442000,-150.0,0.00028552,7]
[423065925,1779815442000,-915.34378663,0.00028576,2]
[423065931,1779815442000,-500.0,0.00028999,120]
[423065928,1779815442000,-919.24371123,0.00028812,2]
[423065938,1779815442000,-5456.9,0.00029,2]
[423065927,1779815442000,-150.0,0.00028719,7]
[423065934,1779815442000,-150.0,0.00029,2]
[423065918,1779815442000,-513.63355706,0.00028429,2]
[423065932,1779815442000,-500.0,0.00028999,120]
[423065923,1779815442000,-150.0,0.00028552,7]
[423065917,1779815442000,-513.63355706,0.00028422,2]
[423065902,1779815442000,-215.42269777,0.00028037,2]
[423065914,1779815442000,-150.0,0.00028385,7]
[423065939,1779815442000,-250.0,0.00029,2]
[423065899,1779815442000,-6454.3258668,0.00027397,10]
[423065900,1779815442000,-2816.05737792,0.0002792,2]
[423065901,1779815442000,-642.79,0.00028,2]
[423065904,1779815442000,-150.0,0.00028058,30]
[423065905,1779815442000,-4694.95,0.00028082,7]
[423065912,1779815442000,-171.27,0.0002831,2]
[423065903,1779815442000,-150.0,0.00028051,7]
[423065907,1779815442000,-504.0,0.00028133,5]
[423065906,1779815442000,-157.51,0.00028107,2]
[423065913,1779815442000,-513.63355706,0.00028342,2]
[423065909,1779815442000,-513.63355706,0.00028139,2]
[423065908,1779815442000,-513.63355706,0.00028134,2]
[423065911,1779815442000,-197.4,0.00028267,2]
[423065910,1779815442000,-513.63355706,0.00028166,2]
[423065915,1779815442000,-672.37544153,0.00028388,2]
[423065940,1779815442000,-1000.0,0.00029,3]
[423065933,1779815442000,-163.6,0.00029,7]
[423065930,1779815442000,-150.0,0.00028897,2]
[423065967,1779815442000,-158.0,0.00029591,30]
[423065970,1779815442000,-504.0,0.00029659,6]
[423065968,1779815442000,-234.0,0.00029595,30]
[423065965,1779815442000,-158.0,0.00029591,30]
[423065962,1779815442000,-153.0,0.00029591,30]
[423065966,1779815442000,-152.0,0.00029591,30]
[423065959,1779815442000,-158.0,0.00029591,30]
[423065973,1779815442000,-150.0,0.00029721,7]
[423065972,1779815442000,-159.57,0.00029697,2]
[423065975,1779815442000,-167.53,0.00029844,2]
[423065977,1779815442000,-150.0,0.00030055,7]
[423065978,1779815442000,-150.00000001,0.00030055,7]
[423065981,1779815442000,-1128.99018081,0.0003008,7]
[423065979,1779815442000,-150.00000001,0.00030055,7]
[423065969,1779815442000,-173.0,0.00029595,30]
[423065957,1779815442000,-161.0,0.00029591,30]
[423065964,1779815442000,-160.0,0.00029591,30]
[423065948,1779815442000,-150.0,0.00029387,7]
[423065936,1779815442000,-10000.0,0.00029,2]
[423065980,1779815442000,-5214.95933737,0.0003008,7]
[423065935,1779815442000,-5961.21,0.00029,2]
[423065937,1779815442000,-10000.0,0.00029,2]
[423065941,1779815442000,-500.0,0.00029,2]
[423065955,1779815442000,-152.0,0.00029591,30]
[423065944,1779815442000,-150.0,0.00029053,7]
[423065943,1779815442000,-952.89,0.00029,2]
[423065942,1779815442000,-4694.95,0.00029,7]
[423065947,1779815442000,-1500.0,0.000293,7]
[423065949,1779815442000,-161.01255405,0.00029509,5]
[423065945,1779815442000,-695.39793187,0.0002921,2]
[423065953,1779815442000,-152.0,0.00029591,30]
[423065951,1779815442000,-158.0,0.00029591,30]
[423065946,1779815442000,-215.42269777,0.000293,7]
[423065929,1779815442000,-2108.39424618,0.00028812,2]
[423065989,1779815443000,-1028.63,0.0003008,7]
[423065987,1779815443000,-327.365286,0.0003008,7]
[423065988,1779815443000,-912.0,0.0003008,7]
[423065999,1779815445000,-6516.16760606,0.00020494,2]
[423066001,1779815445000,-403.23446449,0.00020494,2]
[423066002,1779815445000,-415.67,0.00020494,2]
[423066000,1779815445000,-25360.05860216,0.00020494,2]
[423066003,1779815446000,-251.62680989,0.00020494,2]
[423066007,1779815592000,171.77,0.00012651,2]
[423066010,1779815593000,171.77,0.00014648,2]
[423066009,1779815593000,171.77,0.00013983,2]
[423066008,1779815593000,171.77,0.00013317,2]
[423066011,1779815887000,166.41,0.00014981,2]
[423066013,1779815947000,461.76,0.00027849,120]
[423066015,1779816068000,3265.330972,7.945e-05,2]
[423066016,1779816093000,152.0,0.00025829,120]
[423066019,1779816140000,44207.69129353,0.000107,2]
[423066021,1779816381000,150.0,0.00014855,2]
[423066022,1779816419000,-171.77,0.00015314,2]
[423066024,1779816419000,-5.47715174,0.00016438,2]
[423066023,1779816419000,-171.77,0.0001598,2]
[423066047,1779816631000,-166.66,0.00017889,2]
[423066046,1779816631000,-2000.0,0.00017878,2]
[423066044,1779816631000,-215.0,0.00017723,2]
[423066042,1779816631000,-4885.0,0.00017694,2]
[423066045,1779816631000,-193.44816424,0.00017731,2]
[423066040,1779816631000,-276.98903791,0.00017587,2]
[423066049,1779816631000,-435.00791801,0.000179,2]
[423066063,1779816631000,-189.03,0.00018437,2]
[423066041,1779816631000,-2376.0,0.00017687,2]
[423066035,1779816631000,-171.77,0.00017312,2]
[423066039,1779816631000,-9309.24375602,0.00017553,2]
[423066043,1779816631000,-227.0,0.00017718,2]
[423066037,1779816631000,-300.0,0.00017552,2]
[423066034,1779816631000,-396.446606,0.00017225,2]
[423066036,1779816631000,-166.66,0.00017527,2]
[423066032,1779816631000,-171.77,0.00016646,2]
[423066033,1779816631000,-166.66,0.00017166,2]
[423066031,1779816631000,-152.0,0.00016627,2]
[423066030,1779816631000,-430.6,0.00016438,2]
[423066038,1779816631000,-1200.0,0.00017552,2]
[423066062,1779816631000,-430.6,0.0001841,2]
[423066048,1779816631000,-435.00791798,0.000179,2]
[423066056,1779816631000,-7981.96,0.00018038,2]
[423066061,1779816631000,-483.83,0.00018409,2]
[423066082,1779816631000,-483.83,0.00018858,2]
[423066080,1779816631000,-167.09,0.00018746,2]
[423066072,1779816631000,-166.66,0.00018611,2]
[423066078,1779816631000,-435.00791798,0.00018699,2]
[423066074,1779816631000,-171.77,0.00018643,2]
[423066068,1779816631000,-179.19,0.00018571,2]
[423066070,1779816631000,-163.37,0.00018602,2]
[423066065,1779816631000,-500.0,0.00018476,2]
[423066066,1779816631000,-461.76,0.00018566,2]
[423066076,1779816631000,-793.76,0.00018686,2]
[423066055,1779816631000,-262.91,0.00017987,2]
[423066054,1779816631000,-171.77,0.00017978,2]
[423066058,1779816631000,-166.66,0.0001825,2]
[423066053,1779816631000,-483.83,0.0001796,2]
[423066052,1779816631000,-435.00791798,0.000179,2]
[423066059,1779816631000,-150.0,0.00018257,2]
[423066051,1779816631000,-435.00791798,0.000179,2]
[423066050,1779816631000,-435.00791798,0.000179,2]
[423066064,1779816631000,-435.00791801,0.00018444,2]
[423066057,1779816631000,-164.81804905,0.00018082,2]
[423066160,1779816632000,-500.0,0.00020493,2]
[423066162,1779816632000,-500.0,0.00020493,2]
[423066158,1779816632000,-500.0,0.00020493,2]
[423066156,1779816632000,-500.0,0.00020493,2]
[423066142,1779816632000,-330.42,0.00020384,3]
[423066150,1779816632000,-559.66783828,0.00020493,2]
[423066146,1779816632000,-176.20154969,0.00020394,2]
[423066152,1779816632000,-500.0,0.00020493,2]
[423066144,1779816632000,-2500.0,0.00020394,2]
[423066164,1779816632000,-500.0,0.00020493,2]
[423066154,1779816632000,-500.0,0.00020493,2]
[423066166,1779816632000,-500.0,0.00020493,2]
[423066188,1779816632000,-167.37977558,0.00020493,2]
[423066170,1779816632000,-500.0,0.00020493,2]
[423066172,1779816632000,-500.0,0.00020493,2]
[423066174,1779816632000,-542.78912545,0.00020493,2]
[423066175,1779816632000,-500.0,0.00020493,2]
[423066176,1779816632000,-500.0,0.00020493,2]
[423066180,1779816632000,-500.0,0.00020493,2]
[423066187,1779816632000,-322.01590857,0.00020493,2]
[423066179,1779816632000,-431.87466415,0.00020493,2]
[423066148,1779816632000,-500.0,0.00020493,2]
[423066189,1779816632000,-500.0,0.00020493,2]
[423066178,1779816632000,-160.38718948,0.00020493,2]
[423066181,1779816632000,-179.45677269,0.00020493,2]
[423066168,1779816632000,-500.0,0.00020493,2]
[423066140,1779816632000,-430.6,0.00020381,2]
[423066129,1779816632000,-250.0,0.00020031,2]
[423066136,1779816632000,-1686.71539698,0.00020294,2]
[423066084,1779816632000,-435.00791798,0.00018954,2]
[423066086,1779816632000,-166.66,0.00018973,2]
[423066101,1779816632000,-1300.0,0.000198,7]
[423066088,1779816632000,-1298.0,0.00019255,2]
[423066092,1779816632000,-483.83,0.00019307,2]
[423066110,1779816632000,-4987.66,0.0001998,2]
[423066094,1779816632000,-171.77,0.00019309,2]
[423066096,1779816632000,-483.83,0.00019756,2]
[423066098,1779816632000,-748.46,0.00019781,2]
[423066105,1779816632000,-2600.0,0.000199,7]
[423066103,1779816632000,-500.0,0.000198,7]
[423066108,1779816632000,-171.77,0.00019975,2]
[423066138,1779816632000,-500.0,0.00020348,7]
[423066113,1779816632000,-166.0,0.0002,2]
[423066125,1779816632000,-258.0,0.0002,2]
[423066130,1779816632000,-500.0,0.00020074,7]
[423066127,1779816632000,-183.0,0.0002,2]
[423066114,1779816632000,-966.5832915,0.0002,2]
[423066182,1779816632000,-500.0,0.00020493,2]
[423066132,1779816632000,-5146.2264,0.00020294,2]
[423066115,1779816632000,-157.0,0.0002,2]
[423066112,1779816632000,-159.0,0.0002,2]
[423066117,1779816632000,-158.0,0.0002,2]
[423066119,1779816632000,-170.0,0.0002,2]
[423066121,1779816632000,-154.0,0.0002,2]
[423066134,1779816632000,-10407.4115,0.00020294,2]
[423066123,1779816632000,-2000.0,0.0002,2]
[423066184,1779816632000,-500.0,0.00020493,2]
[423066177,1779816632000,-206.95024604,0.00020493,2]
[423066183,1779816632000,-500.0,0.00020493,2]
[423066223,1779816632000,-199.72580475,0.00021,2]
[423066216,1779816632000,-171.77,0.00020641,2]
[423066217,1779816632000,-26351.9,0.0002079,2]
[423066219,1779816632000,-5970.2309303,0.00020894,2]
[423066218,1779816632000,-461.76,0.00020887,2]
[423066226,1779816632000,-258.0,0.00021,2]
[423066236,1779816632000,-166.0,0.00022,2]
[423066225,1779816632000,-166.0,0.00021,2]
[423066230,1779816632000,-171.77,0.00021307,2]
[423066235,1779816632000,-171.77,0.00021973,2]
[423066227,1779816632000,-183.0,0.00021,2]
[423066231,1779816632000,-225.36128218,0.000215,2]
[423066222,1779816632000,-1210.13702178,0.00021,2]
[423066228,1779816632000,-462.08,0.00021273,2]
[423066229,1779816632000,-484.38,0.00021273,2]
[423066232,1779816632000,-167.09,0.0002184,2]
[423066233,1779816632000,-500.0,0.000219,2]
[423066186,1779816632000,-240.03508294,0.00020493,2]
[423066240,1779816632000,-258.0,0.00022,2]
[423066239,1779816632000,-157.0,0.00022,2]
[423066238,1779816632000,-300.0,0.00022,2]
[423066242,1779816632000,-243.8947225,0.0002211,2]
[423066241,1779816632000,-183.0,0.00022,2]
[423066244,1779816632000,-1686.71539694,0.00022381,2]
[423066245,1779816632000,-8691.65622221,0.00022462,2]
[423066243,1779816632000,-430.6,0.00022353,2]
[423066234,1779816632000,-5000.0,0.00021918,2]
[423066224,1779816632000,-157.0,0.00021,2]
[423066237,1779816632000,-160.0,0.00022,2]
[423066221,1779816632000,-166.0,0.00021,2]
[423066220,1779816632000,-1000.0,0.00021,2]
[423066185,1779816632000,-500.0,0.00020493,2]
[423066190,1779816632000,-500.0,0.00020493,2]
[423066195,1779816632000,-500.0,0.00020493,2]
[423066193,1779816632000,-500.0,0.00020493,2]
[423066196,1779816632000,-186.64364503,0.00020493,2]
[423066201,1779816632000,-500.0,0.00020493,2]
[423066197,1779816632000,-500.0,0.00020493,2]
[423066194,1779816632000,-412.44368182,0.00020493,2]
[423066191,1779816632000,-500.0,0.00020493,2]
[423066198,1779816632000,-500.0,0.00020493,2]
[423066199,1779816632000,-405.29129272,0.00020493,2]
[423066200,1779816632000,-500.0,0.00020493,2]
[423066192,1779816632000,-500.0,0.00020493,2]
[423066213,1779816632000,-495.55,0.00020494,2]
[423066214,1779816632000,-500.0,0.00020594,2]
[423066203,1779816632000,-500.0,0.00020493,2]
[423066215,1779816632000,-500.0,0.00020622,7]
[423066210,1779816632000,-500.0,0.00020493,2]
[423066205,1779816632000,-500.0,0.00020493,2]
[423066206,1779816632000,-500.0,0.00020493,2]
[423066209,1779816632000,-500.0,0.00020493,2]
[423066207,1779816632000,-500.0,0.00020493,2]
[423066208,1779816632000,-500.0,0.00020493,2]
[423066204,1779816632000,-246.33108796,0.00020493,2]
[423066212,1779816632000,-487.0,0.00020494,2]
[423066202,1779816632000,-500.0,0.00020493,2]
[423066211,1779816632000,-487.0,0.00020494,2]
[423066269,1779816633000,-151.0,0.00022719,2]
[423066274,1779816633000,-151.0,0.00022719,2]
[423066268,1779816633000,-151.0,0.00022719,2]
[423066270,1779816633000,-500.0,0.00022719,2]
[423066271,1779816633000,-151.0,0.00022719,2]
[423066273,1779816633000,-151.0,0.00022719,2]
[423066272,1779816633000,-521.20369368,0.00022719,2]
[423066276,1779816633000,-151.0,0.00022719,2]
[423066280,1779816633000,-151.0,0.00022719,2]
[423066281,1779816633000,-151.0,0.00022719,2]
[423066285,1779816633000,-5530.0,0.000228,5]
[423066284,1779816633000,-151.0,0.00022719,2]
[423066275,1779816633000,-151.0,0.00022719,2]
[423066278,1779816633000,-151.0,0.00022719,2]
[423066279,1779816633000,-151.0,0.00022719,2]
[423066282,1779816633000,-151.0,0.00022719,2]
[423066267,1779816633000,-500.0,0.00022719,2]
[423066277,1779816633000,-151.0,0.00022719,2]
[423066266,1779816633000,-151.0,0.00022719,2]
[423066261,1779816633000,-230.09519341,0.00022719,2]
[423066262,1779816633000,-151.0,0.00022719,2]
[423066283,1779816633000,-151.0,0.00022719,2]
[423066247,1779816633000,-946.27,0.00022466,2]
[423066248,1779816633000,-571.56,0.00022466,2]
[423066246,1779816633000,-9974.47377779,0.00022462,2]
[423066250,1779816633000,-3660.76031659,0.000226,2]
[423066249,1779816633000,-36044.4674159,0.000225,2]
[423066253,1779816633000,-151.0,0.00022719,2]
[423066260,1779816633000,-221.88543241,0.00022719,2]
[423066264,1779816633000,-151.0,0.00022719,2]
[423066251,1779816633000,-171.77,0.00022639,2]
[423066252,1779816633000,-531.37574709,0.0002271,2]
[423066256,1779816633000,-151.0,0.00022719,2]
[423066255,1779816633000,-151.0,0.00022719,2]
[423066258,1779816633000,-213.96859442,0.00022719,2]
[423066259,1779816633000,-151.0,0.00022719,2]
[423066257,1779816633000,-151.0,0.00022719,2]
[423066263,1779816633000,-347.79789928,0.00022719,2]
[423066265,1779816633000,-151.0,0.00022719,2]
[423066254,1779816633000,-151.0,0.00022719,2]
[423066287,1779816633000,-88.94914774,0.000229,8]
[423066326,1779816633000,-5375.16921765,0.00025883,2]
[423066288,1779816633000,-3811.05085226,0.000229,8]
[423066315,1779816633000,-167.0020006,0.00025,2]
[423066316,1779816633000,-262.0,0.00025,2]
[423066313,1779816633000,-1000.0,0.00024658,2]
[423066310,1779816633000,-150.0,0.0002457,4]
[423066312,1779816633000,-171.27,0.00024658,2]
[423066320,1779816633000,-461.76,0.00025528,2]
[423066314,1779816633000,-1000.0,0.00025,2]
[423066318,1779816633000,-509.0,0.00025082,2]
[423066321,1779816633000,-1000.0,0.000256,2]
[423066317,1779816633000,-188.80519065,0.00025,2]
[423066323,1779816633000,-484.38,0.00025786,2]
[423066322,1779816633000,-462.08,0.00025786,2]
[423066325,1779816633000,-500.0,0.00025882,2]
[423066324,1779816633000,-150.0,0.00025863,4]
[423066328,1779816633000,-1378.17418521,0.00025883,2]
[423066327,1779816633000,-69471.99838884,0.00025883,2]
[423066329,1779816633000,-938.55,0.00025883,2]
[423066286,1779816633000,-189.03,0.00022876,2]
[423066319,1779816633000,-171.77,0.00025302,2]
[423066309,1779816633000,-735.39496898,0.00024546,2]
[423066311,1779816633000,-171.77,0.00024636,2]
[423066306,1779816633000,-1186.51322754,0.00024133,7]
[423066289,1779816633000,-166.0,0.00023,2]
[423066290,1779816633000,-157.0,0.00023,2]
[423066293,1779816633000,-461.76,0.00023207,2]
[423066291,1779816633000,-258.0,0.00023,2]
[423066292,1779816633000,-183.0,0.00023,2]
[423066294,1779816633000,-150.0,0.00023277,2]
[423066295,1779816633000,-150.0,0.00023277,2]
[423066307,1779816633000,-430.6,0.00024324,2]
[423066298,1779816633000,-171.77,0.00023304,2]
[423066296,1779816633000,-150.0,0.00023277,2]
[423066297,1779816633000,-150.0,0.00023277,2]
[423066303,1779816633000,-258.0,0.00024,2]
[423066300,1779816633000,-82.20236668,0.0002397,2]
[423066302,1779816633000,-160.0,0.00024,2]
[423066301,1779816633000,-166.0,0.00024,2]
[423066305,1779816633000,-1133.70677246,0.00024133,7]
[423066308,1779816633000,-1686.71539694,0.00024468,2]
[423066304,1779816633000,-183.0,0.00024,2]
[423066299,1779816633000,-89.56763332,0.0002397,2]
[423066337,1779816637000,-179.19,0.00026,2]
[423066333,1779816637000,-400.0,0.00025883,2]
[423066334,1779816637000,-75999.99999997,0.00025883,2]
[423066336,1779816637000,-73312.73901595,0.00025883,2]
[423066335,1779816637000,-252.13655528,0.00025883,2]
[423066338,1779816637000,-190.52,0.00026027,7]
[423066340,1779816637000,-1686.71539694,0.00026555,2]
[423066341,1779816637000,-150.99,0.00026591,2]
[423066343,1779816637000,-299.99,0.00026591,12]
[423066342,1779816637000,-1580.03,0.00026591,2]
[423066344,1779816637000,-9999.99,0.00026591,2]
[423066339,1779816637000,-430.6,0.00026296,2]
[423066345,1779816637000,-22036.73,0.00026591,10]
[423066388,1779816638000,-163.0,0.00029,2]
[423066382,1779816638000,-163.0,0.00029,2]
[423066390,1779816638000,-163.0,0.00029,2]
[423066383,1779816638000,-163.0,0.00029,2]
[423066381,1779816638000,-163.0,0.00029,2]
[423066392,1779816638000,-1500.0,0.000293,7]
[423066384,1779816638000,-163.0,0.00029,2]
[423066398,1779816638000,-153.0,0.00029588,30]
[423066380,1779816638000,-163.0,0.00029,2]
[423066393,1779816638000,-300.39542483,0.00029501,5]
[423066386,1779816638000,-163.0,0.00029,2]
[423066379,1779816638000,-163.0,0.00029,2]
[423066395,1779816638000,-159.0,0.00029588,30]
[423066400,1779816638000,-157.0,0.00029589,30]
[423066408,1779816638000,-154.0,0.00029589,30]
[423066410,1779816638000,-160.0,0.00029589,30]
[423066416,1779816638000,-158.0,0.00029589,30]
[423066414,1779816638000,-183.0,0.00029589,30]
[423066418,1779816638000,-1320.917,0.00029697,23]
[423066404,1779816638000,-159.0,0.00029589,30]
[423066420,1779816638000,-176.20154969,0.00029736,2]
[423066406,1779816638000,-157.0,0.00029589,30]
[423066412,1779816638000,-258.0,0.00029589,30]
[423066424,1779816638000,-1000.0,0.00029843,2]
[423066422,1779816638000,-509.0,0.00029789,6]
[423066428,1779816638000,-300.0,0.00030079,10]
[423066434,1779816638000,-243.96433052,0.00030079,10]
[423066397,1779816638000,-166.0,0.00029588,30]
[423066402,1779816638000,-155.0,0.00029589,30]
[423066374,1779816638000,-1025.34,0.00029,2]
[423066353,1779816638000,-1395.24,0.00027433,2]
[423066369,1779816638000,-150.0,0.00028897,2]
[423066351,1779816638000,-1467.22,0.00027397,2]
[423066352,1779816638000,-7591.13,0.00027397,10]
[423066350,1779816638000,-189.03,0.00027314,2]
[423066426,1779816638000,-400.0,0.0003,3]
[423066347,1779816638000,-735.39496898,0.00026622,2]
[423066348,1779816638000,-509.0,0.00026651,3]
[423066346,1779816638000,-9999.99,0.00026591,2]
[423066349,1779816638000,-161.13330052,0.00027226,2]
[423066354,1779816638000,-150.0,0.00027521,2]
[423066355,1779816638000,-165.47,0.00027569,30]
[423066365,1779816638000,-152.0,0.00028823,7]
[423066358,1779816638000,-150.0,0.00027903,7]
[423066356,1779816638000,-163.6,0.00027573,30]
[423066363,1779816638000,-1686.71539694,0.00028642,2]
[423066357,1779816638000,-215.42269777,0.00027848,2]
[423066362,1779816638000,-430.6,0.00028267,2]
[423066359,1779816638000,-151.55103491,0.00028082,5]
[423066360,1779816638000,-150.19771241,0.00028178,5]
[423066361,1779816638000,-509.0,0.0002822,5]
[423066364,1779816638000,-735.39496898,0.00028698,2]
[423066377,1779816638000,-163.0,0.00029,2]
[423066375,1779816638000,-1025.36,0.00029,2]
[423066376,1779816638000,-150.0,0.00029,2]
[423066378,1779816638000,-163.0,0.00029,2]
[423066366,1779816638000,-152.0,0.0002886,7]
[423066370,1779816638000,-1000.0,0.00029,2]
[423066373,1779816638000,-1025.34,0.00029,2]
[423066368,1779816638000,-504.22897688,0.00028876,31]
[423066371,1779816638000,-1000.0,0.00029,2]
[423066372,1779816638000,-1025.34,0.00029,2]
[423066431,1779816638000,-300.0,0.00030079,10]
[423066367,1779816638000,-152.0,0.0002886,7]
[423066441,1779816638000,-430.6,0.00030239,2]
[423066504,1779816638000,-157.0,0.00031589,30]
[423066502,1779816638000,-159.0,0.00031589,30]
[423066505,1779816638000,-154.0,0.00031589,30]
[423066529,1779816638000,-735.39496898,0.0003285,2]
[423066513,1779816638000,-832.0,0.00032126,5]
[423066508,1779816638000,-183.0,0.00031589,30]
[423066506,1779816638000,-160.0,0.00031589,30]
[423066514,1779816638000,-965.0,0.00032126,5]
[423066509,1779816638000,-189.03,0.00031752,120]
[423066507,1779816638000,-258.0,0.00031589,30]
[423066510,1779816638000,-163.0,0.00031823,3]
[423066511,1779816638000,-150.0,0.00031858,2]
[423066512,1779816638000,-166.93,0.00031898,2]
[423066516,1779816638000,-159.0,0.00032588,30]
[423066526,1779816638000,-183.0,0.00032589,30]
[423066438,1779816638000,-90791.99992313,0.0003008,7]
[423066515,1779816638000,-430.6,0.0003221,5]
[423066518,1779816638000,-153.0,0.00032588,30]
[423066517,1779816638000,-166.0,0.00032588,30]
[423066520,1779816638000,-155.0,0.00032589,30]
[423066523,1779816638000,-154.0,0.00032589,30]
[423066525,1779816638000,-258.0,0.00032589,30]
[423066519,1779816638000,-157.0,0.00032589,30]
[423066522,1779816638000,-157.0,0.00032589,30]
[423066521,1779816638000,-166.0,0.00032589,30]
[423066524,1779816638000,-160.0,0.00032589,30]
[423066531,1779816638000,-1000.0,0.00032876,30]
[423066530,1779816638000,-500.0,0.00032875,7]
[423066528,1779816638000,-1686.71539694,0.00032817,2]
[423066500,1779816638000,-155.0,0.00031589,30]
[423066490,1779816638000,-3575.69,0.00031426,2]
[423066527,1779816638000,-408.84,0.00032731,30]
[423066492,1779816638000,-1333.97,0.00031426,2]
[423066499,1779816638000,-157.0,0.00031589,30]
[423066436,1779816638000,-1000.0,0.00030079,7]
[423066439,1779816638000,-171.27,0.00030137,2]
[423066430,1779816638000,-666.0,0.00030079,10]
[423066443,1779816638000,-150.0,0.00030341,2]
[423066445,1779816638000,-288.00743769,0.00030382,5]